bitfinex/quotes_SOLUSD_20250822
["timestamp","ask_amount","ask_price","bid_price","bid_amount"]
[1755867232058,0.03,179.27,179.26,28.956573]
[1755867232267,0.03,179.27,179.26,36.6056305]
[1755867233345,0.03,179.27,179.26,10.6056305]
[1755867234064,0.03,179.27,179.26,2.236573]
[1755867234267,0.03,179.27,179.26,9.8856305]
[1755867234765,0.03,179.27,179.26,10.6056305]
[1755867234969,0.03,179.27,179.26,9.8856305]
[1755867235268,0.03,179.27,179.26,2.236573]
[1755867235659,0.03,179.27,179.26,9.8856305]
[1755867235863,0.03,179.27,179.26,2.236573]
[1755867236047,0.03,179.27,179.26,9.8856305]
[1755867236753,0.03,179.27,179.26,10.6056305]
[1755867236958,0.03,179.27,179.26,2.956573]
[1755867237271,0.03,179.27,179.26,10.6056305]
[1755867238341,0.03,179.27,179.26,42.46844298]
[1755867239567,0.03,179.27,179.26,36.6056305]
[1755867240154,0.03,179.27,179.26,28.956573]
[1755867240466,0.03,179.27,179.26,10.6056305]
[1755867240669,0.03,179.27,179.26,9.8856305]
[1755867240978,0.03,179.27,179.26,10.6056305]
[1755867241474,0.03,179.27,179.26,10.88995364]
[1755867241659,0.03,179.27,179.26,16.46844298]
[1755867243274,0.03,179.29,179.28,33.93338064]
[1755867243458,0.03,179.29,179.28,71.95803215]
[1755867243791,0.03,179.35,179.32,26.28432314]
[1755867243949,0.03,179.35,179.32,79.39338064]
[1755867244150,0.03,179.35,179.32,80.11338064]
[1755867245979,0.03,179.35,179.32,85.69000343]
[1755867246355,0.03,179.35,179.32,80.11338064]
[1755867246551,0.03,179.35,179.28,5.57781306]
[1755867246774,0.69,179.35,179.32,33.6490575]
[1755867246966,0.69,179.33,179.31,7.6490575]
[1755867247161,0.69,179.33,179.28,0.72]
[1755867247162,0.69,179.33,179.32,53.0890575]
[1755867247457,0.03,179.33,179.32,53.8090575]
[1755867249377,0.03,179.33,179.32,56.0447565]
[1755867249679,0.03,179.33,179.32,82.32907964]
[1755867251183,0.03,179.33,179.32,81.60907964]
[1755867251561,0.03,179.33,179.32,82.32907964]
[1755867251757,0.03,179.33,179.32,36.88907964]
[1755867252083,0.03,179.33,179.32,82.30907964]
[1755867252652,0.03,179.33,179.32,87.88570243]
[1755867252868,0.03,179.33,179.32,61.88570243]
[1755867253075,0.03,179.35,179.34,31.57600089]
[1755867253267,0.03,179.35,179.34,84.62505839]
[1755867253599,0.03,179.35,179.34,85.34505839]
[1755867253778,0.03,179.35,179.34,87.58000739]
[1755867255587,0.03,179.35,179.34,28.234949]
[1755867255790,0.03,179.35,179.34,47.614949]
[1755867255959,0.03,179.35,179.34,55.2640065]
[1755867256589,0.03,179.35,179.34,81.9840065]
[1755867257969,0.03,179.35,179.34,87.84433053]
[1755867258162,0.03,179.35,179.34,82.26832964]
[1755867258565,0.03,179.35,179.34,87.84433053]
[1755867258987,0.03,179.35,179.34,82.26832964]
[1755867259674,0.03,179.35,179.34,36.16832964]
[1755867259859,0.03,179.35,179.34,73.594949]
[1755867260061,0.03,179.35,179.34,81.2440065]
[1755867260766,0.03,179.35,179.34,81.9540065]
[1755867261184,0.03,179.35,179.34,87.81433053]
[1755867261375,0.03,179.35,179.34,36.16832964]
[1755867261576,0.03,179.35,179.34,81.52832964]
[1755867262464,0.03,179.35,179.34,81.2440065]
[1755867263994,0.75,179.35,179.34,73.594949]
[1755867264199,0.75,179.35,179.34,79.0090575]
[1755867264866,0.75,179.35,179.34,33.6490575]
[1755867265064,0.75,179.35,179.34,45.34]
[1755867265868,8.3990575,179.35,179.34,45.34]
[1755867266273,0.75,179.35,179.34,45.34]
[1755867266576,8.3990575,179.35,179.3,7.6490575]
[1755867266898,0.72,179.34,179.31,45.34]
[1755867267196,8.3690575,179.34,179.32,45.34]
[1755867267395,0.72,179.33,179.32,45.34]
[1755867268265,21.96465151,179.33,179.31,0.06]
[1755867268465,7.6490575,179.32,179.31,0.06]
[1755867268685,8.3690575,179.32,179.31,0.06]
[1755867268896,21.96465151,179.32,179.31,0.06]
[1755867270097,14.31559401,179.32,179.31,0.06]
[1755867270272,0.72,179.32,179.31,0.06]
[1755867270780,14.34559401,179.35,179.31,0.06]
[1755867270984,21.99465151,179.35,179.31,0.06]
[1755867271184,8.3690575,179.34,179.31,0.06]
[1755867271597,0.72,179.34,179.31,0.06]
[1755867271798,0.72,179.34,179.31,7.7090575]
[1755867271996,0.03,179.35,179.31,7.7090575]
[1755867272371,0.75,179.35,179.31,7.7090575]
[1755867272980,0.03,179.35,179.31,8.4190575]
[1755867273204,0.03,179.35,179.34,7.6490575]
[1755867273496,0.03,179.35,179.31,0.06]
[1755867273497,0.03,179.35,179.33,7.6490575]
[1755867273698,0.03,179.35,179.34,45.32]
[1755867274087,0.75,179.35,179.34,45.32]
[1755867275408,8.3990575,179.35,179.32,45.3]
[1755867275587,0.72,179.34,179.32,45.3]
[1755867275909,0.03,179.35,179.32,53.6590575]
[1755867276124,0.03,179.35,179.32,52.9490575]
[1755867276295,0.72,179.34,179.32,45.3]
[1755867276497,7.6490575,179.33,179.31,0.06]
[1755867276701,0.72,179.32,179.31,0.06]
[1755867277411,8.3690575,179.32,179.31,0.06]
[1755867277582,8.3690575,179.34,179.31,0.06]
[1755867277788,0.72,179.34,179.31,0.06]
[1755867279122,13.62559401,179.35,179.31,0.06]
[1755867279283,0.72,179.33,179.31,0.06]
[1755867279681,7.6490575,179.33,179.31,0.06]
[1755867279892,8.3690575,179.32,179.31,0.06]
[1755867280619,0.72,179.32,179.31,0.06]
[1755867280914,8.3690575,179.32,179.31,0.06]
[1755867281322,0.72,179.32,179.31,0.06]
[1755867281507,8.3690575,179.32,179.31,0.06]
[1755867283000,21.96465151,179.32,179.31,0.06]
[1755867284721,14.31559401,179.32,179.31,0.06]
[1755867285021,21.96465151,179.32,179.31,0.06]
[1755867293705,27.5412743,179.32,179.31,0.06]
[1755867293936,19.8922168,179.32,179.31,0.06]
[1755867294250,21.96465151,179.32,179.31,0.06]
[1755867294404,72.7812743,179.32,179.31,0.06]
[1755867294604,76.52602621,179.32,179.31,0.06]
[1755867295224,72.7812743,179.32,179.31,0.06]
[1755867295438,59.55559401,179.32,179.31,0.06]
[1755867295640,72.7812743,179.32,179.31,0.06]
[1755867295943,67.20465151,179.32,179.31,0.06]
[1755867297039,72.7812743,179.32,179.31,0.06]
[1755867300227,67.16465151,179.32,179.31,0.06]
[1755867300443,59.51559401,179.32,179.31,0.06]
[1755867300636,67.16465151,179.32,179.31,0.06]
[1755867301434,21.92465151,179.32,179.31,0.06]
[1755867301942,27.5012743,179.32,179.31,0.06]
[1755867302849,13.59559401,179.32,179.31,0.06]
[1755867303034,7.6490575,179.32,179.31,0.76]
[1755867303231,7.6790575,179.33,179.31,0.76]
[1755867303555,0.03,179.33,179.31,0.76]
[1755867303742,0.03,179.33,179.32,0.7]
[1755867304653,0.03,179.33,179.31,0.06]
[1755867304854,21.24465151,179.32,179.31,0.06]
[1755867305169,21.92465151,179.32,179.31,0.06]
[1755867306461,0.03,179.33,179.31,0.76]
[1755867306639,0.03,179.33,179.32,0.7]
[1755867307557,0.03,179.33,179.32,8.3490575]
[1755867313277,0.03,179.33,179.31,2.295823]
[1755867313439,0.03,179.33,179.31,0.06]
[1755867314067,7.6790575,179.33,179.31,0.06]
[1755867314382,8.3290575,179.32,179.31,0.06]
[1755867315547,21.24465151,179.32,179.31,0.06]
[1755867315755,25.67863382,179.32,179.31,0.06]
[1755867316142,23.60619911,179.32,179.31,0.06]
[1755867316559,25.67863382,179.32,179.31,0.06]
[1755867316967,21.92465151,179.32,179.31,0.06]
[1755867318268,27.5012743,179.32,179.31,0.06]
[1755867318643,31.25540614,179.32,179.31,0.06]
[1755867319464,31.53972928,179.32,179.31,0.06]
[1755867320260,3.75413184,179.32,179.31,0.06]
[1755867320454,7.6790575,179.33,179.31,0.06]
[1755867320649,0.03,179.33,179.31,0.06]
[1755867320857,0.03,179.33,179.32,26.0]
[1755867321056,0.03,179.33,179.32,26.66]
[1755867321259,0.03,179.33,179.32,0.66]
[1755867321548,0.03,179.33,179.32,26.0]
[1755867322054,0.03,179.33,179.32,0.66]
[1755867322260,0.03,179.33,179.32,12.89423418]
[1755867323059,0.03,179.33,179.32,26.0]
[1755867323779,0.03,179.33,179.32,12.89423418]
[1755867324279,0.03,179.33,179.31,0.06]
[1755867324448,12.97423418,179.33,179.31,0.06]
[1755867324645,12.26423418,179.33,179.31,0.06]
[1755867324850,0.03,179.33,179.31,0.06]
[1755867325554,0.03,179.33,179.31,0.72]
[1755867326689,0.03,179.33,179.32,12.89423418]
[1755867327172,0.03,179.33,179.32,25.15846818]
[1755867327764,0.03,179.33,179.32,12.924234]
[1755867327969,0.03,179.33,179.32,12.264234]
[1755867328892,0.74,179.33,179.31,0.06]
[1755867329061,12.26423418,179.33,179.31,0.06]
[1755867329248,12.97423418,179.33,179.31,0.06]
[1755867329693,12.97423418,179.33,179.31,0.72]
[1755867329694,0.03,179.33,179.31,0.72]
[1755867329896,0.03,179.33,179.31,0.06]
[1755867330060,12.97423418,179.33,179.31,0.06]
[1755867330383,149.09893818,179.32,179.31,0.06]
[1755867330763,162.69453219,179.32,179.31,0.06]
[1755867330966,56.57885533,179.32,179.31,0.06]
[1755867331682,30.57885533,179.32,179.31,0.06]
[1755867332193,36.15547812,179.32,179.31,0.06]
[1755867332689,18.06029801,179.32,179.31,0.06]
[1755867332864,61.87115498,179.32,179.31,0.06]
[1755867333060,56.29453219,179.32,179.31,0.06]
[1755867334993,3.754704,179.32,179.31,0.06]
[1755867335290,0.03,179.33,179.31,0.72]
[1755867335591,0.03,179.33,179.31,0.06]
[1755867336166,0.03,179.33,179.31,0.72]
[1755867337590,0.03,179.33,179.31,0.06]
[1755867337793,0.03,179.33,179.32,0.66]
[1755867337979,12.97423418,179.33,179.31,0.06]
[1755867338295,32.11645098,179.32,179.31,0.06]
[1755867338666,26.53982819,179.32,179.31,0.06]
[1755867338994,12.23423418,179.32,179.31,0.06]
[1755867339809,12.94423418,179.32,179.31,0.06]
[1755867339971,30.29380447,179.32,179.31,0.06]
[1755867340303,35.87042726,179.32,179.31,0.06]
[1755867340809,30.29380447,179.32,179.31,0.06]
[1755867340959,36.1547504,179.32,179.31,0.06]
[1755867343278,81.1747504,179.32,179.31,0.06]
[1755867343590,68.94051622,179.32,179.31,0.06]
[1755867343785,81.1747504,179.32,179.31,0.06]
[1755867344884,81.1747504,179.32,179.29,0.06]
[1755867344885,39.59559401,179.3,179.29,0.06]
[1755867345107,55.58380447,179.3,179.29,0.06]
[1755867345311,56.29380447,179.3,179.29,0.06]
[1755867346070,68.52803865,179.3,179.29,0.06]
[1755867346302,68.52803865,179.3,179.27,0.06]
[1755867346303,38.34838551,179.28,179.27,0.06]
[1755867346506,87.12236179,179.28,179.27,0.06]
[1755867346799,81.17599463,179.28,179.27,0.06]
[1755867347674,93.41022881,179.28,179.27,0.06]
[1755867348872,13.87991715,179.27,179.26,0.06]
[1755867349072,30.57812761,179.27,179.26,0.06]
[1755867350991,36.15630577,179.27,179.26,0.06]
[1755867351603,23.21207159,179.27,179.26,0.06]
[1755867351772,80.44630577,179.27,179.26,0.06]
[1755867352916,81.15630577,179.27,179.26,0.06]
[1755867354417,39.87991715,179.25,179.22,0.1]
[1755867354700,100.86812761,179.25,179.22,0.1]
[1755867354874,62.15692816,179.25,179.22,0.1]
[1755867355083,57.69295188,179.25,179.22,0.1]
[1755867355298,102.69295188,179.25,179.22,0.1]
[1755867355500,107.14609745,179.25,179.22,0.1]
[1755867357588,49.20186327,179.25,179.22,0.1]
[1755867357791,39.59559401,179.25,179.22,0.77]
[1755867357993,106.86168604,179.25,179.22,0.1]
[1755867358191,55.57288549,179.25,179.22,0.1]
[1755867358409,57.21423418,179.25,179.22,0.1]
[1755867358585,70.80982819,179.25,179.22,0.1]
[1755867358783,71.09415133,179.25,179.22,0.1]
[1755867358990,76.67295188,179.25,179.22,0.1]
[1755867359203,76.67295188,179.25,179.22,0.77]
[1755867359411,77.38295188,179.25,179.22,0.1]
[1755867359786,81.12619424,179.25,179.22,0.1]
[1755867360097,68.89196006,179.25,179.22,0.1]
[1755867360290,31.69295188,179.25,179.22,0.1]
[1755867361513,36.14545464,179.25,179.22,0.1]
[1755867362613,23.20122046,179.25,179.22,0.1]
[1755867362918,35.43545464,179.25,179.22,0.1]
[1755867363126,32.40295188,179.25,179.22,0.1]
[1755867363305,36.14427936,179.25,179.22,0.1]
[1755867364985,35.43427936,179.25,179.22,0.1]
[1755867366290,30.86296188,179.25,179.22,0.1]
[1755867366489,31.57296188,179.25,179.22,0.1]
[1755867367101,13.87991715,179.23,179.22,0.1]
[1755867367316,27.12225693,179.23,179.22,0.1]
[1755867367528,53.12225693,179.23,179.22,0.1]
[1755867367700,27.12225693,179.23,179.22,0.1]
[1755867368019,31.59709568,179.23,179.22,0.1]
[1755867369422,21.25851071,179.23,179.22,0.77]
[1755867369719,66.21851071,179.23,179.22,0.77]
[1755867370019,71.79793379,179.23,179.22,0.1]
[1755867370205,66.21851071,179.23,179.22,0.77]
[1755867370405,58.55559401,179.23,179.22,0.77]
[1755867370716,66.21851071,179.23,179.22,0.77]
[1755867370894,71.79793379,179.23,179.22,0.77]
[1755867371495,66.21851071,179.23,179.22,0.77]
[1755867371798,71.79793379,179.23,179.22,0.1]
[1755867372014,71.79793379,179.23,179.22,0.77]
[1755867372210,71.79793379,179.23,179.22,0.1]
[1755867372906,72.08225693,179.23,179.22,0.1]
[1755867373108,72.79225693,179.23,179.22,0.1]
[1755867373419,75.82689188,179.23,179.22,0.1]
[1755867373728,72.08225693,179.23,179.22,0.1]
[1755867374141,98.79225693,179.23,179.22,0.1]
[1755867374342,102.53697238,179.23,179.22,0.1]
[1755867375512,76.53697238,179.23,179.22,0.1]
[1755867376339,13.87991715,179.22,179.21,0.06]
[1755867376531,33.660466,179.22,179.2,0.1]
[1755867376733,39.59559401,179.19,179.18,0.06]
[1755867376936,97.77917927,179.19,179.18,0.06]
[1755867377345,112.68517382,179.19,179.15,0.06]
[1755867377653,21.25851071,179.16,179.15,0.06]
[1755867377826,66.17851071,179.16,179.15,0.06]
[1755867378453,92.46283385,179.16,179.15,0.06]
[1755867378617,97.29449648,179.16,179.15,0.06]
[1755867378814,102.20609951,179.16,179.15,0.06]
[1755867379237,57.28609951,179.16,179.15,0.06]
[1755867379445,102.20609951,179.16,179.15,0.06]
[1755867380150,102.87609951,179.16,179.15,0.06]
[1755867380349,13.87991715,179.15,179.13,0.06]
[1755867380523,52.86723984,179.14,179.13,0.06]
[1755867381240,58.44946603,179.14,179.13,0.06]
[1755867381550,26.0,179.14,179.13,0.73]
[1755867381866,7.6629167,179.14,179.13,0.73]
[1755867382064,44.92,179.16,179.13,0.73]
[1755867382267,7.6629167,179.14,179.13,0.73]
[1755867382428,44.92,179.16,179.13,0.73]
[1755867382635,7.6629167,179.14,179.13,0.73]
[1755867383334,0.03,179.18,179.13,0.73]
[1755867383631,0.03,179.18,179.13,8.3929167]
[1755867383933,19.04477288,179.24,179.13,8.3929167]
[1755867383934,4.68319162,179.27,179.17,7.6629167]
[1755867384132,40.40485409,179.26,179.18,0.67]
[1755867384340,7.6629167,179.22,179.18,0.67]
[1755867384539,7.6629167,179.21,179.18,0.67]
[1755867384852,3.74897939,179.23,179.18,0.67]
[1755867385076,4.16720569,179.22,179.19,0.67]
[1755867385231,7.6629167,179.2,179.16,0.67]
[1755867385431,7.6629167,179.18,179.17,0.67]
[1755867385627,7.6629167,179.23,179.17,8.3329167]
[1755867385825,4.16889797,179.22,179.18,0.67]
[1755867386050,7.6629167,179.19,179.18,0.67]
[1755867386447,12.26183417,179.19,179.18,0.67]
[1755867386646,44.9,179.22,179.18,0.67]
[1755867386955,44.9,179.22,179.13,38.32183417]
[1755867386956,12.26183417,179.2,179.19,0.67]
[1755867387125,12.26183417,179.21,179.13,26.06]
[1755867387324,12.26183417,179.21,179.16,12.26183417]
[1755867387761,70.9,179.23,179.17,0.67]
[1755867387941,7.92751143,179.22,179.17,0.67]
[1755867388142,4.17209906,179.21,179.17,0.67]
[1755867388464,3.75541237,179.22,179.18,12.26183417]
[1755867388665,16.43520939,179.21,179.19,0.67]
[1755867388863,12.26183417,179.2,179.15,12.26183417]
[1755867389066,12.26183417,179.19,179.17,0.67]
[1755867389445,12.26183417,179.18,179.17,0.67]
[1755867389758,12.26183417,179.18,179.15,0.67]
[1755867390070,12.26183417,179.17,179.16,0.67]
[1755867390368,12.26183417,179.18,179.17,0.67]
[1755867390577,12.26183417,179.18,179.14,0.67]
[1755867390750,12.26183417,179.18,179.15,0.67]
[1755867390948,12.26183417,179.17,179.15,0.67]
[1755867391565,12.26183417,179.17,179.13,0.06]
[1755867391566,12.26183417,179.16,179.13,0.06]
[1755867391972,12.26183417,179.15,179.13,0.73]
[1755867392146,12.26183417,179.14,179.13,0.06]
[1755867392465,12.26183417,179.15,179.13,0.06]
[1755867393172,0.67,179.2,179.14,0.67]
[1755867393350,12.26183417,179.17,179.14,0.67]
[1755867393541,12.26183417,179.17,179.15,0.67]
[1755867393745,12.26183417,179.16,179.13,0.73]
[1755867393964,12.26183417,179.15,179.13,0.73]
[1755867394274,12.26183417,179.15,179.14,0.67]
[1755867394469,12.26183417,179.15,179.13,0.06]
[1755867394671,12.26183417,179.14,179.13,0.06]
[1755867395188,12.26183417,179.14,179.13,0.73]
[1755867395347,12.26183417,179.14,179.13,0.06]
[1755867396984,20.87197064,179.14,179.13,0.06]
[1755867397365,26.45419683,179.14,179.13,0.06]
[1755867398075,40.33411398,179.14,179.13,0.06]
[1755867398664,0.28432314,179.12,179.11,0.06]
[1755867398893,91.86930592,179.12,179.11,0.06]
[1755867399071,26.0,179.09,179.06,0.1]
[1755867399273,12.26183417,179.07,179.06,0.1]
[1755867399474,25.7870177,179.07,179.06,0.1]
[1755867399677,14.19518353,179.07,179.06,0.1]
[1755867399876,26.4570177,179.07,179.06,0.1]
[1755867400098,30.99910674,179.07,179.06,0.1]
[1755867401005,16.0229514,179.07,179.06,0.77]
[1755867401315,12.26183417,179.07,179.06,0.1]
[1755867401473,12.26183417,179.07,179.06,0.77]
[1755867401874,12.26183417,179.07,179.06,0.1]
[1755867403274,17.8462425,179.07,179.06,0.1]
[1755867403993,12.26183417,179.07,179.06,0.1]
[1755867406027,17.8462425,179.07,179.06,0.1]
[1755867406318,13.2599358,179.07,179.06,0.1]
[1755867407143,58.8299358,179.07,179.06,0.1]
[1755867407327,66.7385151,179.07,179.06,0.1]
[1755867407822,80.61843225,179.07,179.06,0.1]
[1755867408197,76.45549814,179.07,179.06,0.1]
[1755867408426,80.61661367,179.07,179.06,0.1]
[1755867408602,52.76676072,179.07,179.06,0.1]
[1755867408920,60.44228819,179.07,179.06,0.1]
[1755867409341,66.02498758,179.07,179.06,0.1]
[1755867410394,60.44057925,179.07,179.06,0.1]
[1755867410622,66.02498758,179.07,179.06,0.1]
[1755867410821,66.73498758,179.07,179.06,0.1]
[1755867411208,66.73234471,179.07,179.06,0.1]
[1755867411431,72.93673439,179.07,179.06,0.1]
[1755867411623,66.00234471,179.07,179.06,0.1]
[1755867411825,66.71234471,179.07,179.06,0.1]
[1755867412034,15.57793638,179.07,179.06,0.1]
[1755867412355,7.67552747,179.07,179.06,0.8]
[1755867412840,44.84,179.08,179.06,0.8]
[1755867413322,7.67552747,179.07,179.06,0.8]
[1755867413635,7.67552747,179.08,179.07,0.7]
[1755867414735,75.39241401,179.1,179.07,0.7]
[1755867414920,7.67552747,179.08,179.06,0.1]
[1755867415128,7.67552747,179.07,179.06,0.1]
[1755867415719,7.67552747,179.07,179.06,0.8]
[1755867416220,7.67552747,179.07,179.06,0.1]
[1755867418530,5.58419974,179.08,179.06,0.1]
[1755867418725,7.67552747,179.07,179.06,0.1]
[1755867419734,6.29440833,179.07,179.06,0.1]
[1755867419949,7.67552747,179.07,179.06,0.1]
[1755867420832,45.53,179.09,179.06,0.1]
[1755867421054,7.67552747,179.07,179.06,0.1]
[1755867422031,44.82,179.09,179.06,0.1]
[1755867422234,7.67552747,179.07,179.06,0.1]
[1755867422664,8.38552747,179.07,179.06,0.1]
[1755867422857,51.11380847,179.09,179.06,0.1]
[1755867423157,7.67552747,179.07,179.06,0.8]
[1755867423326,7.67552747,179.07,179.06,0.1]
[1755867423653,13.9699358,179.07,179.06,0.1]
[1755867425627,46.17432548,179.07,179.06,0.1]
[1755867425849,84.7699358,179.07,179.06,0.1]
[1755867426239,32.29440833,179.07,179.06,0.1]
[1755867426529,106.52903441,179.07,179.06,0.1]
[1755867427135,132.3,179.05,179.04,0.06]
[1755867427345,82.62230852,179.05,179.04,0.06]
[1755867427554,88.91734063,179.05,179.04,0.06]
[1755867428461,84.77055958,179.05,179.04,0.06]
[1755867428838,84.06055958,179.05,179.04,0.06]
[1755867429348,70.8,179.05,179.04,0.06]
[1755867429549,44.8,179.07,179.04,0.76]
[1755867429762,7.67552747,179.05,179.04,0.76]
[1755867429946,44.8,179.07,179.04,0.76]
[1755867430143,70.8,179.08,179.04,0.76]
[1755867430341,70.8,179.08,179.05,0.7]
[1755867430545,7.67552747,179.09,179.06,0.7]
[1755867430860,7.67552747,179.09,179.07,0.7]
[1755867431040,7.67552747,179.08,179.07,0.7]
[1755867431652,49.28044351,179.11,179.07,0.7]
[1755867431850,7.67552747,179.09,179.07,0.7]
[1755867432060,7.67552747,179.08,179.07,0.7]
[1755867432780,132.4,179.09,179.07,0.7]
[1755867432981,132.4,179.09,179.07,8.37552747]
[1755867433437,132.4,179.09,179.08,0.7]
[1755867434067,140.07552747,179.09,179.06,0.76]
[1755867434269,140.07552747,179.09,179.07,0.7]
[1755867434475,132.4,179.09,179.07,0.7]
[1755867434642,7.67552747,179.08,179.06,0.06]
[1755867434842,140.07552747,179.07,179.06,0.06]
[1755867435336,146.3699358,179.07,179.06,0.06]
[1755867435944,154.27258854,179.07,179.06,0.06]
[1755867436248,199.05258854,179.07,179.06,0.06]
[1755867437244,144.23853065,179.07,179.06,0.06]
[1755867437444,147.98550563,179.07,179.06,0.06]
[1755867437686,143.82250245,179.07,179.06,0.06]
[1755867438241,11.42250245,179.07,179.06,0.06]
[1755867438541,11.8407455,179.07,179.06,0.06]
[1755867438754,18.08515383,179.07,179.06,0.06]
[1755867438942,21.83212881,179.07,179.06,0.06]
[1755867439143,66.59212881,179.07,179.06,0.06]
[1755867442056,21.83212881,179.07,179.06,0.06]
[1755867442250,66.59212881,179.07,179.06,0.06]
[1755867442657,85.17407734,179.07,179.06,0.06]
[1755867443170,132.34,179.05,179.04,0.06]
[1755867443357,104.90966901,179.05,179.04,0.06]
[1755867443552,19.18125004,179.03,179.02,0.06]
[1755867443752,84.49439678,179.03,179.02,0.06]
[1755867443947,85.15439678,179.03,179.02,0.06]
[1755867444483,80.46551186,179.03,179.02,0.06]
[1755867445072,86.55468047,179.03,179.02,0.06]
[1755867445248,80.46519424,179.03,179.02,0.06]
[1755867445448,80.46280062,179.03,179.02,0.06]
[1755867446788,80.47007175,179.03,179.02,0.06]
[1755867446957,26.0,178.95,178.89,0.71]
[1755867447148,7.67552747,178.92,178.9,0.71]
[1755867447347,7.67552747,178.92,178.91,0.71]
[1755867447771,4.50505064,178.93,178.91,0.71]
[1755867448076,3.75424611,178.94,178.92,0.71]
[1755867448373,7.67552747,178.93,178.92,0.71]
[1755867448575,12.17473965,178.93,178.9,0.71]
[1755867448884,7.67552747,178.92,178.91,0.71]
[1755867449097,7.67552747,178.92,178.89,0.71]
[1755867449299,7.67552747,178.91,178.87,7.67552747]
[1755867449604,7.67552747,178.91,178.9,0.71]
[1755867451494,7.67552747,178.91,178.88,0.71]
[1755867451670,7.67552747,178.91,178.89,0.71]
[1755867451996,7.67552747,178.91,178.9,0.71]
[1755867452896,7.67552747,178.91,178.87,0.06]
[1755867453196,7.67552747,178.88,178.87,0.06]
[1755867453894,7.67552747,178.89,178.87,0.06]
[1755867454593,7.67552747,178.88,178.87,0.06]
[1755867454991,0.66,178.89,178.87,0.06]
[1755867455295,7.67552747,178.88,178.87,0.06]
[1755867456772,53.07552747,178.88,178.87,0.06]
[1755867457091,58.66586736,178.88,178.87,0.06]
[1755867459195,44.74,178.88,178.87,0.06]
[1755867459386,44.72,178.88,178.87,0.06]
[1755867459592,52.39552747,178.88,178.87,0.06]
[1755867460694,53.05552747,178.88,178.87,0.06]
[1755867460895,44.72,178.88,178.87,0.06]
[1755867461102,52.39552747,178.88,178.87,0.06]
[1755867461301,58.64586736,178.88,178.87,0.06]
[1755867462698,57.98586736,178.88,178.87,0.06]
[1755867463886,58.64586736,178.88,178.87,0.06]
[1755867464801,13.92586736,178.88,178.87,0.06]
[1755867465029,70.72,178.88,178.87,0.06]
[1755867465388,78.39552747,178.88,178.87,0.06]
[1755867466507,83.98586736,178.88,178.87,0.06]
[1755867466887,32.25033989,178.88,178.87,0.06]
[1755867467086,31.59007662,178.89,178.87,0.06]
[1755867467310,45.42,178.88,178.87,0.06]
[1755867467605,44.72,178.88,178.87,0.06]
[1755867468014,52.39552747,178.88,178.87,0.06]
[1755867469093,57.98586736,178.88,178.87,0.06]
[1755867471288,13.26586736,178.88,178.87,0.06]
[1755867471484,52.37552747,178.88,178.87,0.78]
[1755867472413,52.37552747,178.88,178.87,0.06]
[1755867472902,44.7,178.88,178.87,0.06]
[1755867473091,52.37552747,178.88,178.87,0.06]
[1755867473292,57.96586736,178.88,178.87,0.06]
[1755867475019,58.66586736,178.88,178.87,0.06]
[1755867476225,50.99033989,178.88,178.87,0.06]